bitfinex-derivatives/quotes_BTCF0:USTF0_20250101
["timestamp","ask_amount","ask_price","bid_price","bid_amount"]
[1735717036609,0.05339,93847.0,93844.0,0.053392]
[1735717037716,0.053391,93846.0,93844.0,0.053392]
[1735717038813,0.053391,93846.0,93845.0,0.3608]
[1735717039010,0.054391,93846.0,93845.0,0.3608]
[1735717039611,0.058391,93846.0,93845.0,0.3608]
[1735717040004,0.054391,93846.0,93845.0,0.3608]
[1735717040204,0.059391,93846.0,93845.0,0.3608]
[1735717042617,0.053392,93845.0,93844.0,0.053392]
[1735717043810,0.058392,93845.0,93844.0,0.053392]
[1735717047111,0.058392,93845.0,93844.0,0.414192]
[1735717054828,0.058392,93845.0,93844.0,0.053392]
[1735717077939,0.005,93845.0,93844.0,0.053392]
[1735717089407,0.02212407,93850.0,93841.0,0.42446]
[1735717089653,0.053388,93851.0,93841.0,0.42446]
[1735717089654,0.003,93845.0,93844.0,0.053391]
[1735717089856,0.003,93845.0,93844.0,0.29046979]
[1735717090051,0.07092878,93851.0,93849.0,0.053388]
[1735717090636,0.053388,93850.0,93844.0,0.23707879]
[1735717091037,0.053388,93850.0,93849.0,0.053389]
[1735717091648,0.055388,93850.0,93849.0,0.053389]
[1735717092253,0.058388,93850.0,93849.0,0.053389]
[1735717092549,0.059388,93850.0,93849.0,0.053389]
[1735717094850,0.07677148,93850.0,93849.0,0.053389]
[1735717095153,0.02338348,93850.0,93849.0,0.053389]
[1735717100651,0.02338348,93850.0,93849.0,0.414189]
[1735717104663,0.006,93850.0,93849.0,0.414189]
[1735717109463,0.1149034,93869.0,93849.0,0.414189]
[1735717109464,0.41418,93866.0,93865.0,0.053381]
[1735717109971,0.43174656,93866.0,93865.0,0.053381]
[1735717111767,0.43174656,93866.0,93865.0,0.054381]
[1735717112262,0.37836656,93866.0,93865.0,0.054381]
[1735717114467,0.01756656,93866.0,93865.0,0.054381]
[1735717114679,0.1149034,93873.0,93865.0,0.001]
[1735717114963,0.1149034,93873.0,93872.0,0.053377]
[1735717115861,0.053375,93876.0,93873.0,0.053376]
[1735717118064,0.37724598,93874.0,93873.0,0.054376]
[1735717119070,0.37729806,93874.0,93873.0,0.054376]
[1735717122063,0.43067306,93874.0,93873.0,0.054376]
[1735717123374,0.06987306,93874.0,93873.0,0.054376]
[1735717123637,0.06987306,93874.0,93873.0,0.001]
[1735717132478,0.05338,93866.0,93865.0,0.3608]
[1735717132932,0.17420118,93866.0,93865.0,0.3608]
[1735717133671,0.17420118,93866.0,93862.0,0.23704749]
[1735717133672,0.053382,93863.0,93862.0,0.23704749]
[1735717134077,0.16982468,93863.0,93862.0,0.23704749]
[1735717135472,0.17082468,93863.0,93862.0,0.23804749]
[1735717139776,0.11487591,93873.0,93866.0,0.05338]
[1735717140366,0.053379,93868.0,93866.0,0.05338]
[1735717140974,0.053379,93868.0,93867.0,0.053379]
[1735717141682,0.01740745,93873.0,93866.0,0.001]
[1735717141870,0.01740745,93873.0,93868.0,0.053379]
[1735717141871,0.054376,93873.0,93868.0,0.053379]
[1735717142071,0.053376,93873.0,93868.0,0.053379]
[1735717142979,0.053376,93873.0,93869.0,0.053378]
[1735717143381,0.053376,93873.0,93870.0,0.053378]
[1735717144878,0.053376,93873.0,93870.0,0.054378]
[1735717145380,0.053377,93871.0,93870.0,0.054378]
[1735717146584,0.053377,93871.0,93870.0,0.001]
[1735717147504,0.053377,93871.0,93865.0,0.41474]
[1735717147679,0.053377,93871.0,93870.0,0.001]
[1735717147877,0.053377,93871.0,93870.0,0.0339]
[1735717148683,0.053377,93871.0,93870.0,0.0329]
[1735717149189,0.053377,93871.0,93870.0,0.0339]
[1735717151288,0.050877,93871.0,93870.0,0.0339]
[1735717154097,0.17412395,93871.0,93870.0,0.001]
[1735717157285,0.17412395,93871.0,93865.0,0.3608]
[1735717157286,0.12324695,93871.0,93865.0,0.3608]
[1735717157483,0.05338,93866.0,93865.0,0.3608]
[1735717157895,0.16609991,93866.0,93865.0,0.3608]
[1735717158094,0.11271991,93866.0,93857.0,0.0327]
[1735717158294,0.053382,93863.0,93857.0,0.0327]
[1735717163381,0.053382,93863.0,93854.0,0.3608]
[1735717163382,0.17440731,93863.0,93854.0,0.3608]
[1735717163792,0.01548917,93863.0,93854.0,0.3608]
[1735717163989,0.02519328,93870.0,93854.0,0.3608]
[1735717164190,0.1210313,93863.0,93854.0,0.3608]
[1735717164393,0.053386,93855.0,93854.0,0.3608]
[1735717164792,0.1744173,93855.0,93854.0,0.3608]
[1735717171399,0.18927283,93855.0,93854.0,0.3608]
[1735717177396,0.053387,93854.0,93850.0,0.053389]
[1735717177799,0.17009763,93853.0,93850.0,0.053389]
[1735717177990,0.053388,93851.0,93850.0,0.053389]
[1735717178527,0.16658929,93851.0,93850.0,0.053389]
[1735717179198,0.16658929,93851.0,93850.0,0.054389]
[1735717194804,0.16658929,93851.0,93850.0,0.001]
[1735717195919,0.11320129,93851.0,93843.0,0.053393]
[1735717196216,0.053392,93846.0,93843.0,0.05295987]
[1735717196620,0.11142439,93845.0,93844.0,0.053392]
[1735717203026,0.053395,93840.0,93839.0,0.053395]
[1735717203412,0.17571699,93840.0,93839.0,0.053395]
[1735717204709,0.17571699,93840.0,93839.0,0.054395]
[1735717205912,0.17571699,93840.0,93839.0,0.055395]
[1735717207215,0.17571699,93840.0,93839.0,0.002]
[1735717207417,0.053398,93834.0,93833.0,0.02758389]
[1735717207618,0.053398,93834.0,93833.0,0.38838389]
[1735717208721,0.053398,93834.0,93833.0,0.39238389]
[1735717208928,0.053398,93834.0,93833.0,0.03158389]
[1735717209809,0.053398,93834.0,93833.0,0.03358389]
[1735717210529,0.06741677,93834.0,93833.0,0.03358389]
[1735717214131,0.06741677,93834.0,93833.0,0.006]
[1735717217429,0.06741677,93834.0,93833.0,0.00349321]
[1735717231539,0.18792037,93834.0,93833.0,0.00349321]
[1735717232258,0.18792037,93834.0,93833.0,0.00203522]
[1735717239052,0.053403,93825.0,93821.0,0.053405]
[1735717239666,0.11127575,93824.0,93821.0,0.053405]
[1735717239752,0.053404,93823.0,93821.0,0.053405]
[1735717240138,0.11262983,93822.0,93821.0,0.053405]
[1735717240347,0.11262983,93822.0,93817.0,0.0303]
[1735717240546,0.053405,93821.0,93817.0,0.083708]
[1735717240753,0.053405,93821.0,93818.0,0.053407]
[1735717240947,0.11262983,93820.0,93818.0,0.053407]
[1735717241459,0.10762983,93820.0,93818.0,0.053407]
[1735717241747,0.16103583,93820.0,93818.0,0.053407]
[1735717242256,0.053407,93819.0,93818.0,0.058407]
[1735717242580,0.053407,93819.0,93818.0,0.067407]
[1735717242855,0.17419607,93819.0,93818.0,0.067407]
[1735717244549,0.17519607,93819.0,93818.0,0.067407]
[1735717244958,0.17519607,93819.0,93818.0,0.062407]
[1735717245158,0.17519607,93819.0,93818.0,0.013]
[1735717246962,0.17519607,93819.0,93816.0,0.414768]
[1735717246963,0.053416,93802.0,93801.0,0.053417]
[1735717247156,0.053416,93802.0,93801.0,0.084817]
[1735717247364,0.3608,93809.0,93804.0,0.053415]
[1735717247656,0.3608,93809.0,93806.0,0.053414]
[1735717247865,0.053413,93808.0,93806.0,0.053414]
[1735717248259,0.053413,93807.0,93806.0,0.053414]
[1735717248770,0.053413,93807.0,93806.0,0.062414]
[1735717249062,0.053413,93807.0,93806.0,0.068414]
[1735717249272,0.053413,93807.0,93806.0,0.059414]
[1735717249452,0.053413,93807.0,93806.0,0.068414]
[1735717250660,0.053413,93807.0,93806.0,0.067414]
[1735717251355,0.053413,93807.0,93806.0,0.057414]
[1735717251557,0.054413,93807.0,93806.0,0.061414]
[1735717253563,0.054413,93807.0,93806.0,0.008]
[1735717254058,0.37394731,93809.0,93801.0,0.084817]
[1735717254253,0.37394731,93809.0,93806.0,0.007]
[1735717254450,0.053413,93807.0,93806.0,0.007]
[1735717254853,0.053413,93807.0,93806.0,0.004]
[1735717255064,0.053413,93807.0,93806.0,0.006]
[1735717255260,0.053413,93807.0,93806.0,0.002]
[1735717257058,0.053413,93807.0,93806.0,0.006]
[1735717263961,0.053413,93807.0,93806.0,0.004]
[1735717264170,0.053413,93807.0,93806.0,0.006]
[1735717264665,0.053413,93807.0,93806.0,0.002]
[1735717264858,0.16714992,93807.0,93806.0,0.005]
[1735717265572,0.16714992,93807.0,93806.0,0.003]
[1735717265773,0.16714992,93807.0,93806.0,0.005]
[1735717269579,0.16714992,93807.0,93806.0,0.00290581]
[1735717277272,0.0120742,93807.0,93806.0,0.00290581]
[1735717277983,0.0654872,93807.0,93806.0,0.00290581]
[1735717279583,0.053416,93803.0,93800.0,0.03276004]
[1735717279775,0.053416,93803.0,93800.0,0.04500782]
[1735717279974,0.11886488,93802.0,93800.0,0.04500782]
[1735717280690,0.17228088,93802.0,93800.0,0.04800782]
[1735717280875,0.17228088,93802.0,93800.0,0.05000782]
[1735717281181,0.053417,93801.0,93800.0,0.05000782]
[1735717281383,0.16914567,93801.0,93800.0,0.04700782]
[1735717281585,0.053417,93801.0,93800.0,0.05000782]
[1735717282079,0.16914567,93801.0,93800.0,0.03776004]
[1735717282485,0.16914567,93801.0,93800.0,0.03676004]
[1735717283181,0.17014567,93801.0,93800.0,0.03576004]
[1735717283991,0.17014567,93801.0,93800.0,0.03476004]
[1735717295384,0.17014567,93801.0,93797.0,0.21181093]
[1735717295994,0.17014567,93801.0,93800.0,0.053417]
[1735717297360,0.16914567,93801.0,93800.0,0.056417]
[1735717297498,0.17014567,93801.0,93800.0,0.056417]
[1735717297790,0.16914567,93801.0,93800.0,0.056417]
[1735717298001,0.17014567,93801.0,93800.0,0.057417]
[1735717306111,0.17014567,93801.0,93800.0,0.004]
[1735717307411,0.053418,93798.0,93797.0,0.26522993]
[1735717307814,0.16773842,93798.0,93797.0,0.26522993]
[1735717309211,0.16773842,93798.0,93797.0,0.26822993]
[1735717309918,0.16873842,93798.0,93797.0,0.19472795]
[1735717312924,0.18114395,93798.0,93797.0,0.19472795]
[1735717313523,0.18114395,93798.0,93797.0,0.13458791]
[1735717315622,0.05342,93795.0,93794.0,0.05342]
[1735717316099,0.17571551,93795.0,93794.0,0.05342]
[1735717340536,0.09465174,93797.0,93794.0,0.03773297]
[1735717340936,0.11318545,93795.0,93794.0,0.03773297]
[1735717341138,0.05342,93795.0,93794.0,0.03773297]
[1735717341439,0.17452989,93795.0,93794.0,0.03773297]
[1735717346850,0.053422,93790.0,93789.0,0.053422]
[1735717347350,0.52868553,93790.0,93789.0,0.053422]
[1735717348045,0.52868553,93790.0,93789.0,0.054422]
[1735717362746,0.52868553,93790.0,93789.0,0.043732]
[1735717366849,0.16788553,93790.0,93789.0,0.043732]
[1735717367056,0.52868553,93790.0,93789.0,0.043732]
[1735717372148,0.52868553,93790.0,93776.0,0.3608]
[1735717372357,0.60047852,93790.0,93779.0,0.031]
[1735717372552,0.053422,93789.0,93788.0,0.053421]
[1735717372949,0.16585318,93789.0,93788.0,0.053421]
[1735717373669,0.053422,93789.0,93788.0,0.053421]
[1735717374064,0.053422,93789.0,93788.0,0.055421]
[1735717375643,0.054422,93789.0,93788.0,0.055421]
[1735717380359,0.001,93789.0,93788.0,0.055421]
[1735717380562,0.1149615,93800.0,93797.0,0.053417]
[1735717380861,0.3608,93801.0,93800.0,0.053415]
[1735717382861,0.3628,93801.0,93800.0,0.053415]
[1735717383167,0.3638,93801.0,93800.0,0.053415]
[1735717386775,0.003,93801.0,93800.0,0.053415]
[1735717411701,0.12248763,93801.0,93800.0,0.053415]
[1735717438719,0.12248763,93801.0,93800.0,0.050915]
[1735717445733,0.12148763,93801.0,93800.0,0.050915]
[1735717445940,0.12248763,93801.0,93800.0,0.050915]
[1735717492868,0.3056753,93806.0,93805.0,0.053415]
[1735717493386,0.42547544,93806.0,93805.0,0.053415]
[1735717494066,0.42947544,93806.0,93805.0,0.053415]
[1735717494461,0.43147544,93806.0,93805.0,0.053415]
[1735717496667,0.44228645,93806.0,93805.0,0.053415]
[1735717525406,0.13661115,93806.0,93805.0,0.053415]
[1735717527800,0.13661115,93806.0,93805.0,0.03105769]
[1735717529999,0.19002715,93806.0,93805.0,0.03105769]
[1735717534192,0.11164966,93807.0,93805.0,0.03105769]
[1735717534393,0.11727003,93806.0,93805.0,0.03105769]
[1735717535903,0.17068603,93806.0,93805.0,0.03105769]
[1735717536200,0.17268603,93806.0,93805.0,0.03105769]
[1735717536996,0.17568603,93806.0,93805.0,0.03105769]
[1735717553819,0.17568603,93806.0,93795.0,0.053422]
[1735717554005,0.17568603,93806.0,93805.0,0.053416]
[1735717555408,0.17368603,93806.0,93805.0,0.053416]
[1735717556322,0.17568603,93806.0,93805.0,0.053416]
[1735717559519,0.12227003,93806.0,93805.0,0.053416]
[1735717560509,0.12227003,93806.0,93793.0,0.23719594]
[1735717560510,0.005,93806.0,93796.0,0.14358598]
[1735717560853,0.005,93806.0,93805.0,0.053416]
[1735717561720,0.3608,93808.0,93807.0,0.053415]
[1735717563834,0.3648,93808.0,93807.0,0.053415]
[1735717564318,0.53120002,93808.0,93807.0,0.053415]
[1735717564523,0.53320002,93808.0,93807.0,0.053415]
[1735717566213,0.53320002,93808.0,93807.0,0.03082975]
[1735717572263,0.47978602,93808.0,93807.0,0.03082975]
[1735717581658,0.84058602,93808.0,93807.0,0.03082975]
[1735717581838,0.11898602,93808.0,93807.0,0.03082975]
[1735717582136,0.84058602,93808.0,93807.0,0.03082975]
[1735717582449,0.95552874,93808.0,93807.0,0.03082975]
[1735717593251,0.23392874,93808.0,93807.0,0.03082975]
[1735717593656,0.95552874,93808.0,93807.0,0.03082975]
[1735717595257,0.23392874,93808.0,93807.0,0.03082975]
[1735717595562,0.95552874,93808.0,93807.0,0.03082975]
[1735717595960,0.23392874,93808.0,93807.0,0.03082975]
[1735717596356,0.95552874,93808.0,93807.0,0.03082975]
[1735717608571,0.23392874,93808.0,93807.0,0.03082975]
[1735717608775,0.59472874,93808.0,93807.0,0.03082975]
[1735717609873,0.47978602,93808.0,93807.0,0.03082975]
[1735717643184,0.11898602,93808.0,93807.0,0.03082975]
[1735717643395,0.47978602,93808.0,93807.0,0.03082975]
[1735717644484,0.11898602,93808.0,93807.0,0.03082975]
[1735717644686,0.47978602,93808.0,93807.0,0.03082975]
[1735717650798,0.48078602,93808.0,93807.0,0.03082975]
[1735717657794,0.53420002,93808.0,93807.0,0.03082975]
[1735717657995,0.48078602,93808.0,93785.0,0.0618]
[1735717658192,0.3608,93796.0,93785.0,0.0944]
[1735717659990,0.3608,93796.0,93795.0,0.054421]
[1735717665423,0.47284385,93796.0,93795.0,0.054421]
[1735717666206,0.11204385,93796.0,93795.0,0.054421]
[1735717666407,0.47284385,93796.0,93795.0,0.054421]
[1735717666608,0.3608,93796.0,93795.0,0.054421]
[1735717666974,0.11786305,93796.0,93795.0,0.054421]
[1735717667116,0.47866305,93796.0,93795.0,0.054421]
[1735717667305,0.3608,93796.0,93795.0,0.054421]
[1735717667508,0.47608111,93796.0,93795.0,0.054421]
[1735717668905,0.11528111,93796.0,93795.0,0.054421]
[1735717669105,0.47608111,93796.0,93795.0,0.054421]
[1735717669306,0.3608,93796.0,93795.0,0.054421]
[1735717669507,0.47594029,93796.0,93795.0,0.054421]
[1735717675822,0.11514029,93796.0,93795.0,0.054421]
[1735717676117,0.3608,93796.0,93795.0,0.054421]
[1735717676523,0.4829456,93796.0,93795.0,0.054421]
[1735717677717,0.1221456,93796.0,93795.0,0.054421]
[1735717677919,0.4829456,93796.0,93795.0,0.054421]
[1735717678114,0.3608,93796.0,93795.0,0.054421]
[1735717678314,0.47521833,93796.0,93795.0,0.054421]
[1735717682312,0.83601833,93796.0,93795.0,0.054421]
[1735717682620,0.11441833,93796.0,93795.0,0.054421]
[1735717683060,0.7216,93796.0,93795.0,0.054421]
[1735717683113,0.83655241,93796.0,93795.0,0.054421]
[1735717683314,0.95034405,93796.0,93795.0,0.054421]
[1735717684213,0.83539164,93796.0,93795.0,0.054421]
[1735717685214,0.11379164,93796.0,93795.0,0.054421]
[1735717685419,0.83539164,93796.0,93795.0,0.054421]
[1735717685616,0.7216,93796.0,93795.0,0.054421]
[1735717685818,0.8368861,93796.0,93795.0,0.054422]
[1735717687414,0.1152861,93796.0,93795.0,0.054422]
[1735717687609,0.8368861,93796.0,93795.0,0.054422]
[1735717687814,0.7216,93796.0,93795.0,0.054422]
[1735717688016,0.83666671,93796.0,93795.0,0.054422]
[1735717702639,0.11506671,93796.0,93795.0,0.054422]
[1735717702933,0.83666671,93796.0,93795.0,0.054422]
[1735717703534,0.89008771,93796.0,93795.0,0.054422]
[1735717704426,0.7030379,93796.0,93795.0,0.054422]
[1735717704737,0.81452906,93796.0,93795.0,0.054422]
[1735717705134,0.88651216,93796.0,93795.0,0.054422]
[1735717711945,0.16491216,93796.0,93795.0,0.054422]
[1735717712152,0.52571216,93796.0,93795.0,0.054422]
[1735717722260,0.52571216,93796.0,93795.0,0.001]
[1735717724048,0.52571216,93796.0,93789.0,0.053425]
[1735717724049,0.053425,93790.0,93789.0,0.03061775]
[1735717725064,0.053425,93790.0,93789.0,0.02090059]
[1735717725250,0.053425,93790.0,93785.0,0.0628]
[1735717725561,0.053425,93790.0,93789.0,0.054425]
[1735717725768,0.414225,93790.0,93789.0,0.054425]
[1735717725948,0.52770205,93790.0,93789.0,0.054425]
[1735717726357,0.52770205,93790.0,93789.0,0.053425]
[1735717726550,0.053427,93786.0,93785.0,0.0346]
[1735717726861,0.053427,93786.0,93753.0,0.3608]
[1735717726862,0.053431,93780.0,93779.0,0.053431]
[1735717727175,0.414231,93780.0,93779.0,0.053431]
[1735717727365,0.52505025,93780.0,93779.0,0.053431]
[1735717728164,0.52405025,93780.0,93779.0,0.053431]
[1735717728965,0.52405025,93780.0,93779.0,0.055431]
[1735717729466,0.16325025,93780.0,93779.0,0.055431]
[1735717729763,0.52505025,93780.0,93779.0,0.055431]
[1735717731764,0.54026601,93780.0,93779.0,0.055431]
[1735717732554,0.53926601,93780.0,93779.0,0.054431]
[1735717733479,0.48883501,93780.0,93779.0,0.054431]
[1735717736863,0.12803501,93780.0,93779.0,0.054431]
[1735717737073,0.48883501,93780.0,93779.0,0.054431]
[1735717749774,0.48883501,93780.0,93779.0,0.03093108]
[1735717750105,0.12803501,93780.0,93779.0,0.03093108]
[1735717750272,0.48883501,93780.0,93779.0,0.03093108]
[1735717753584,0.12803501,93780.0,93779.0,0.03093108]
[1735717753881,0.48883501,93780.0,93779.0,0.03093108]
[1735717754572,0.12803501,93780.0,93779.0,0.03093108]
[1735717754767,0.48883501,93780.0,93779.0,0.03093108]
[1735717755373,0.12803501,93780.0,93779.0,0.03093108]
[1735717755584,0.48883501,93780.0,93779.0,0.03093108]
[1735717756086,0.12803501,93780.0,93779.0,0.03093108]
[1735717756384,0.48883501,93780.0,93779.0,0.03093108]
[1735717757474,0.12803501,93780.0,93779.0,0.03093108]
[1735717757675,0.48883501,93780.0,93779.0,0.03093108]
[1735717759880,0.48883501,93780.0,93779.0,0.054431]
[1735717762080,0.12803501,93780.0,93779.0,0.054431]
[1735717762300,0.48883501,93780.0,93779.0,0.054431]
[1735717762681,0.12803501,93780.0,93779.0,0.055431]
[1735717762881,0.48883501,93780.0,93779.0,0.055431]
[1735717763083,0.48983501,93780.0,93779.0,0.054431]
[1735717763284,0.49083501,93780.0,93779.0,0.053431]
[1735717765494,0.13003501,93780.0,93779.0,0.053431]
[1735717766091,0.49083501,93780.0,93779.0,0.053431]
[1735717767886,0.13003501,93780.0,93779.0,0.053431]
[1735717768393,0.49083501,93780.0,93779.0,0.053431]
[1735717768589,0.13003501,93780.0,93779.0,0.053431]
[1735717768795,0.49083501,93780.0,93779.0,0.053431]
[1735717769893,0.49083501,93780.0,93779.0,0.03121265]
[1735717772590,0.13003501,93780.0,93779.0,0.03121265]
[1735717772797,0.49083501,93780.0,93779.0,0.03121265]
[1735717773886,0.13003501,93780.0,93779.0,0.03121265]
[1735717774087,0.49083501,93780.0,93779.0,0.03121265]
[1735717775801,0.13003501,93780.0,93779.0,0.03121265]
[1735717776000,0.49083501,93780.0,93779.0,0.03121265]
[1735717776400,0.13003501,93780.0,93779.0,0.03121265]
[1735717776595,0.49083501,93780.0,93779.0,0.03121265]
[1735717778702,0.33066726,93780.0,93779.0,0.03121265]
[1735717778902,0.11497383,93783.0,93782.0,0.053429]
[1735717779105,0.1287074,93783.0,93782.0,0.053429]
[1735717779311,0.24697673,93783.0,93782.0,0.036795]
[1735717779713,0.4928029,93783.0,93782.0,0.036795]
[1735717780506,0.4958029,93783.0,93782.0,0.036795]
[1735717781108,0.4968029,93783.0,93782.0,0.036795]
[1735717782505,0.1360029,93783.0,93782.0,0.036795]
[1735717782707,0.4968029,93783.0,93782.0,0.036795]
[1735717783604,0.1360029,93783.0,93782.0,0.036795]
[1735717784150,0.4968029,93783.0,93782.0,0.036795]
[1735717784419,0.1360029,93783.0,93782.0,0.036795]
[1735717784615,0.4968029,93783.0,93782.0,0.036795]
[1735717787409,0.4968029,93783.0,93782.0,0.02567598]
[1735717791021,0.1360029,93783.0,93782.0,0.02567598]
[1735717791315,0.4968029,93783.0,93782.0,0.02567598]
[1735717792221,0.1360029,93783.0,93782.0,0.02567598]
[1735717792418,0.4968029,93783.0,93782.0,0.02567598]
[1735717793716,0.1360029,93783.0,93782.0,0.02567598]
[1735717793927,0.4968029,93783.0,93782.0,0.02567598]
[1735717794417,0.1360029,93783.0,93782.0,0.02567598]
[1735717794613,0.4968029,93783.0,93782.0,0.02567598]
[1735717795425,0.1360029,93783.0,93782.0,0.02567598]
[1735717795612,0.1360029,93783.0,93782.0,0.01806102]
[1735717795613,0.4968029,93783.0,93782.0,0.01806102]
[1735717795810,0.4968029,93783.0,93779.0,0.03121265]
[1735717796009,0.1360029,93783.0,93782.0,0.053429]
[1735717796215,0.4968029,93783.0,93782.0,0.053429]
[1735717796906,0.4938029,93783.0,93782.0,0.053429]
[1735717797521,0.4928029,93783.0,93782.0,0.053429]
[1735717797706,0.4958029,93783.0,93782.0,0.053429]
[1735717797906,0.4968029,93783.0,93782.0,0.053429]
[1735717799402,0.1360029,93783.0,93782.0,0.053429]
[1735717799720,0.4968029,93783.0,93782.0,0.053429]
[1735717805428,0.1360029,93783.0,93782.0,0.053429]
[1735717805920,0.4968029,93783.0,93782.0,0.053429]
[1735717806309,0.1360029,93783.0,93782.0,0.053429]
[1735717806520,0.4968029,93783.0,93782.0,0.053429]
[1735717807411,0.37853357,93783.0,93782.0,0.053429]
[1735717808921,0.3648,93783.0,93782.0,0.053429]
[1735717809122,0.3608,93793.0,93782.0,0.31670253]
[1735717809478,0.5,93807.0,93782.0,0.31670253]
[1735717809479,0.13307262,93809.0,93803.0,0.053417]
[1735717809632,0.3608,93819.0,93818.0,0.053409]
[1735717809806,0.37774492,93819.0,93818.0,0.03851552]
[1735717810006,0.22585201,93819.0,93818.0,0.03851552]
[1735717810220,0.22585201,93819.0,93818.0,0.02728153]
[1735717811150,0.23485201,93819.0,93818.0,0.02728153]
[1735717811824,0.29526001,93819.0,93818.0,0.02828153]
[1735717812010,0.41036198,93819.0,93818.0,0.02828153]
[1735717812523,0.40136198,93819.0,93818.0,0.02828153]
[1735717812821,0.41036198,93819.0,93818.0,0.02928153]
[1735717813326,0.41036198,93819.0,93818.0,0.002]
[1735717817025,0.053411,93814.0,93813.0,0.03238509]
[1735717817528,0.16908596,93814.0,93813.0,0.03238509]
[1735717818224,0.17508596,93814.0,93813.0,0.03338509]
[1735717819023,0.18408596,93814.0,93813.0,0.03338509]
[1735717841845,0.18408596,93814.0,93813.0,0.02386847]
[1735717846736,0.015,93814.0,93813.0,0.02386847]
[1735717860355,0.015,93814.0,93813.0,0.38466847]
[1735717865457,0.009,93814.0,93813.0,0.38366847]
[1735717865733,0.013,93814.0,93813.0,0.38366847]
[1735717866353,0.012,93814.0,93813.0,0.38366847]
[1735717866760,0.01,93814.0,93813.0,0.38366847]
[1735717867259,0.01694492,93819.0,93813.0,0.38366847]
[1735717867565,0.053404,93827.0,93826.0,0.053404]
[1735717869556,0.062404,93827.0,93826.0,0.053404]
[1735717870360,0.069404,93827.0,93826.0,0.054404]
[1735717871659,0.0887461,93827.0,93826.0,0.02920498]
[1735717872168,0.0797461,93827.0,93826.0,0.02920498]
[1735717872364,0.0887461,93827.0,93826.0,0.02920498]
[1735717880062,0.0817461,93827.0,93826.0,0.02820498]
[1735717880267,0.0887461,93827.0,93826.0,0.02920498]
[1735717881286,0.20228808,93827.0,93826.0,0.02920498]
[1735717881572,0.20228808,93827.0,93826.0,0.001]
[1735717881877,0.20228808,93827.0,93826.0,0.054404]
[1735717890387,0.20228808,93827.0,93826.0,0.053404]
[1735717890388,0.19528808,93827.0,93826.0,0.053404]
[1735717890681,0.20228808,93827.0,93826.0,0.054404]
[1735717891582,0.20228808,93827.0,93826.0,0.02874848]
[1735717894994,0.20228808,93827.0,93826.0,0.001]
[1735717901603,0.14888408,93827.0,93817.0,0.3608]
[1735717901795,0.14888408,93827.0,93817.0,0.43259299]
[1735717902301,0.14888408,93827.0,93817.0,0.07179299]
[1735717902501,0.14188408,93827.0,93817.0,0.43259299]
[1735717902697,0.19228808,93827.0,93826.0,0.001]
[1735717903024,0.20128808,93827.0,93826.0,0.002]
[1735717903304,0.19228808,93827.0,93826.0,0.001]
[1735717903530,0.053406,93823.0,93822.0,0.053406]
[1735717903902,0.17406896,93823.0,93822.0,0.053406]
[1735717905612,0.18306896,93823.0,93822.0,0.054406]
[1735717906024,0.18806896,93823.0,93822.0,0.055406]
[1735717912471,0.18806896,93823.0,93822.0,0.03091303]
[1735717912712,0.18006896,93823.0,93822.0,0.02991303]
[1735717912949,0.18906896,93823.0,93822.0,0.03091303]
[1735717925921,0.18906896,93823.0,93822.0,0.01701254]
[1735717926116,0.18906896,93823.0,93822.0,0.002]
[1735717927125,0.18906896,93823.0,93822.0,0.055406]
[1735717930336,0.13566296,93823.0,93822.0,0.055406]
[1735717935929,0.13566296,93823.0,93817.0,0.35608147]
[1735717936936,0.12966296,93823.0,93822.0,0.053406]
[1735717937135,0.13466296,93823.0,93822.0,0.053406]
[1735717938622,0.13566296,93823.0,93822.0,0.054406]
[1735717957552,0.13566296,93823.0,93822.0,0.03181886]
[1735717962539,0.13566296,93823.0,93822.0,0.03281886]
[1735717963345,0.12966296,93823.0,93822.0,0.03181886]
[1735717963537,0.13466296,93823.0,93822.0,0.03281886]
[1735717964250,0.13566296,93823.0,93822.0,0.03281886]
[1735717965144,0.00767862,93826.0,93822.0,0.002]
[1735717965344,0.0193421,93827.0,93822.0,0.002]
[1735717965544,0.11646991,93823.0,93822.0,0.002]
[1735717965746,0.16987391,93826.0,93824.0,0.053405]
[1735717965946,0.16987391,93826.0,93822.0,0.002]
[1735717965947,0.053404,93826.0,93825.0,0.053405]
[1735717966248,0.068404,93826.0,93825.0,0.053405]
[1735717966547,0.18921697,93826.0,93825.0,0.03816363]
[1735717967047,0.19021697,93826.0,93825.0,0.03916363]
[1735717968444,0.19021697,93826.0,93825.0,0.04016363]
[1735717973845,0.016,93826.0,93825.0,0.04016363]
[1735717974753,0.016,93826.0,93825.0,0.02350357]
[1735718005565,0.25686904,93836.0,93825.0,0.002]
[1735718005866,0.053403,93829.0,93827.0,0.053403]
[1735718006069,0.053403,93829.0,93827.0,0.29052822]
[1735718006374,0.053403,93829.0,93828.0,0.053403]
[1735718006574,0.053403,93829.0,93828.0,0.03849238]
[1735718007765,0.063403,93829.0,93828.0,0.03949238]
[1735718008268,0.063403,93829.0,93828.0,0.04049238]
[1735718017069,0.063403,93829.0,93828.0,0.02943348]
[1735718019479,0.01,93829.0,93828.0,0.02943348]
[1735718025377,0.01,93829.0,93828.0,0.001]
[1735718025582,0.01,93829.0,93827.0,0.20643934]
[1735718025882,0.01,93829.0,93828.0,0.053403]
[1735718026679,0.009,93829.0,93828.0,0.053403]
[1735718028183,0.01,93829.0,93828.0,0.053403]
[1735718028977,0.006,93829.0,93828.0,0.053403]
[1735718029276,0.012,93829.0,93828.0,0.054403]
[1735718036384,0.065403,93829.0,93828.0,0.054403]
[1735718040291,0.012,93829.0,93828.0,0.054403]
[1735718073414,0.012,93829.0,93828.0,0.415203]
[1735718074016,0.053398,93838.0,93837.0,0.053397]
[1735718074211,0.053398,93838.0,93837.0,0.03882869]
[1735718074418,0.16900314,93838.0,93837.0,0.03882869]
[1735718075416,0.17400314,93838.0,93837.0,0.03982869]
[1735718076118,0.17500314,93838.0,93837.0,0.03982869]
[1735718091120,0.17500314,93838.0,93837.0,0.02904841]
[1735718092715,0.17500314,93838.0,93837.0,0.001]
[1735718092916,0.12160514,93838.0,93837.0,0.001]
[1735718099210,0.12160514,93838.0,93837.0,0.00073543]